fUSD/lending_fUSD_20260227
["ID","MTS","AMOUNT","RATE_DAILY","PERIOD"]
[406799750,1772203840314,-8782.68815971,0.000109,2]
[406799751,1772203840324,-303.34071404,0.0001092,2]
[406799752,1772203840332,-736.0,0.00010938,2]
[406799753,1772203840342,-823.0,0.00010938,2]
[406799754,1772203840351,-3292.0,0.00010938,2]
[406799755,1772203840359,-150.0,0.00010959,2]
[406799756,1772203840368,-702.66339194,0.0001104,2]
[406799757,1772203840377,-19481.78439435,0.00011099,2]
[406799758,1772203840386,-19481.78439432,0.00011099,2]
[406799759,1772203840395,-19481.78439432,0.00011099,2]
[406799760,1772203840408,-19481.78439432,0.00011099,2]
[406799761,1772203840417,-1013.54,0.00011109,2]
[406799762,1772203840426,-1512.33,0.00011129,2]
[406799763,1772203840436,-150.0,0.00011233,2]
[406799764,1772203840446,-200.0,0.00011233,2]
[406799765,1772203840455,-9999.99,0.00011281,2]
[406799766,1772203840464,-150.99,0.00011281,2]
[406799767,1772203840474,-4312.84,0.00011281,2]
[406799768,1772203840484,-348.44,0.00011281,2]
[406799769,1772203840493,-150.99,0.00011281,2]
[406799770,1772203840501,-9999.99,0.00011281,2]
[406799771,1772203840510,-9999.99,0.00011281,2]
[406799772,1772203840519,-999.99,0.00011281,2]
[406799773,1772203840528,-299.99,0.00011281,2]
[406799774,1772203840537,-9999.99,0.00011281,2]
[406799775,1772203840546,-1000.0,0.00011377,2]
[406799776,1772203840555,-1000.0,0.00011377,2]
[406799777,1772203840564,-1013.54,0.00011454,2]
[406799778,1772203840573,-5557.48,0.00011507,2]
[406799779,1772203840582,-76695.0,0.000116,2]
[406799780,1772203840591,-19481.78439432,0.00011615,2]
[406799781,1772203840600,-1013.54,0.00011799,2]
[406799782,1772203840609,-1153.73492118,0.00011844,2]
[406799783,1772203840619,-14398.02636703,0.00011844,2]
[406799784,1772203840628,-307.5751693,0.00011844,2]
[406799785,1772203840637,-203.69193972,0.00011844,2]
[406799786,1772203840646,-1000.0,0.000119,4]
[406799787,1772203840657,-150.0,0.00011917,2]
[406799788,1772203840666,-150.0,0.00011917,2]
[406799789,1772203840675,-1500.0,0.00011924,2]
[406799790,1772203840684,-1320.22794059,0.00011924,2]
[406799791,1772203840693,-593177.2760446,0.00011944,2]
[406799792,1772203840702,-151.0,0.00011944,2]
[406799793,1772203840720,-151.0,0.00011944,2]
[406799794,1772203840737,-151.0,0.00011944,2]
[406799795,1772203840755,-151.0,0.00011944,2]
[406799796,1772203840776,-151.0,0.00011944,2]
[406799797,1772203840791,-6819.86011,0.00011967,2]
[406799798,1772203840810,-809.257868,0.00011967,2]
[406799799,1772203840830,-1342.448826,0.00011968,2]
[406799800,1772203840850,-283.90698305,0.00011972,2]
[406799801,1772203840867,-318.0,0.00012031,2]
[406799802,1772203840887,-1152.0,0.00012032,2]
[406799803,1772203840907,-4609.0,0.00012032,2]
[406799804,1772203840921,-52754.8,0.00012055,2]
[406799805,1772203840942,-1013.54,0.00012143,2]
[406799806,1772203840954,-500.0,0.00012411,2]
[406799807,1772203840972,-500.0,0.00012466,2]
[406799808,1772203840985,-2000.0,0.00012472,2]
[406799809,1772203841001,-1013.54,0.00012488,2]
[406799810,1772203841018,-5531.0,0.000126,3]
[406799811,1772203841037,-8782.68815971,0.00012659,2]
[406799812,1772203841052,-1013.54,0.00012833,2]
[406799813,1772203841067,-500.0,0.0001289,2]
[406799814,1772203841083,-500.0,0.0001289,2]
[406799815,1772203841098,-500.0,0.0001289,2]
[406799816,1772203841113,-500.0,0.0001289,2]
[406799817,1772203841128,-500.0,0.0001289,2]
[406799818,1772203841146,-500.0,0.0001289,2]
[406799819,1772203841161,-500.0,0.0001289,2]
[406799820,1772203841176,-500.0,0.0001289,2]
[406799821,1772203841192,-500.0,0.0001289,2]
[406799822,1772203841212,-500.0,0.0001289,2]
[406799823,1772203841229,-500.0,0.0001289,2]
[406799824,1772203841246,-500.0,0.0001289,2]
[406799825,1772203841263,-500.0,0.0001289,2]
[406799826,1772203841279,-500.0,0.0001289,2]
[406799827,1772203841295,-500.0,0.0001289,2]
[406799828,1772203841311,-500.0,0.0001289,2]
[406799829,1772203841327,-500.0,0.0001289,2]
[406799830,1772203841342,-500.0,0.0001289,2]
[406799831,1772203841358,-500.0,0.0001289,2]
[406799832,1772203841373,-500.0,0.0001289,2]
[406799833,1772203841388,-500.0,0.0001289,2]
[406799834,1772203841404,-500.0,0.0001289,2]
[406799835,1772203841421,-500.0,0.0001289,2]
[406799836,1772203841437,-500.0,0.0001289,2]
[406799837,1772203841454,-500.0,0.0001289,2]
[406799838,1772203841469,-500.0,0.0001289,2]
[406799839,1772203841485,-500.0,0.0001289,2]
[406799840,1772203841501,-500.0,0.0001289,2]
[406799841,1772203841516,-500.0,0.0001289,2]
[406799842,1772203841530,-500.0,0.0001289,2]
[406799843,1772203841545,-851.56555211,0.0001289,2]
[406799844,1772203841560,-500.0,0.0001289,2]
[406799845,1772203841575,-504.04222443,0.0001289,2]
[406799846,1772203841590,-500.0,0.0001289,2]
[406799847,1772203841605,-500.0,0.0001289,2]
[406799848,1772203841620,-500.0,0.0001289,2]
[406799849,1772203841636,-500.0,0.0001289,2]
[406799850,1772203841652,-500.0,0.0001289,2]
[406799851,1772203841667,-500.0,0.0001289,2]
[406799852,1772203841683,-500.0,0.0001289,2]
[406799853,1772203841700,-500.0,0.0001289,2]
[406799854,1772203841714,-500.0,0.0001289,2]
[406799855,1772203841729,-500.0,0.0001289,2]
[406799856,1772203841744,-500.0,0.0001289,2]
[406799857,1772203841759,-500.0,0.0001289,2]
[406799858,1772203841774,-500.0,0.0001289,2]
[406799859,1772203841789,-500.0,0.0001289,2]
[406799860,1772203841803,-500.0,0.0001289,2]
[406799861,1772203841818,-500.0,0.0001289,2]
[406799862,1772203841833,-500.0,0.0001289,2]
[406799863,1772203841849,-500.0,0.0001289,2]
[406799864,1772203841864,-500.0,0.0001289,2]
[406799865,1772203841879,-500.0,0.0001289,2]
[406799866,1772203841896,-700.0,0.0001289,2]
[406799867,1772203841906,-500.0,0.0001289,2]
[406799868,1772203842116,-700.0,0.0001289,2]
[406799869,1772203842127,-500.0,0.0001289,2]
[406799870,1772203842137,-700.0,0.0001289,2]
[406799871,1772203842146,-700.0,0.0001289,2]
[406799872,1772203842156,-700.0,0.0001289,2]
[406799873,1772203842165,-500.0,0.0001289,2]
[406799874,1772203842175,-700.0,0.0001289,2]
[406799875,1772203842184,-700.0,0.0001289,2]
[406799876,1772203842193,-500.0,0.0001289,2]
[406799877,1772203842203,-700.0,0.0001289,2]
[406799878,1772203842212,-500.0,0.0001289,2]
[406799879,1772203842221,-700.0,0.0001289,2]
[406799880,1772203842232,-700.0,0.0001289,2]
[406799881,1772203842241,-700.0,0.0001289,2]
[406799882,1772203842250,-700.0,0.0001289,2]
[406799883,1772203842259,-700.0,0.0001289,2]
[406799884,1772203842269,-700.0,0.0001289,2]
[406799885,1772203842279,-1300.0,0.000129,4]
[406799886,1772203842288,-4212.0052927,0.0001293,2]
[406799887,1772203842298,-28429.7318363,0.0001293,2]
[406799888,1772203842307,-157.318222,0.00012965,2]
[406799889,1772203842316,-1643.78018193,0.0001301,2]
[406799890,1772203842325,-2000.0,0.0001302,2]
[406799891,1772203842334,-681.712294,0.00013036,2]
[406799892,1772203842344,-500.0,0.00013064,2]
[406799893,1772203842353,-10048.75,0.00013121,2]
[406799894,1772203842363,-500.0,0.00013151,2]
[406799895,1772203842372,-1013.54,0.00013178,2]
[406799896,1772203842382,-1613.0,0.00013235,2]
[406799897,1772203842392,-151.0,0.00013235,2]
[406799898,1772203842401,-419.22132892,0.00013314,2]
[406799899,1772203842415,-151.0,0.00013324,2]
[406799900,1772203842425,-346.311245,0.00013324,2]
[406799901,1772203842434,-346.311245,0.00013324,2]
[406799902,1772203842445,-346.311245,0.00013324,2]
[406799903,1772203842454,-346.311245,0.00013324,2]
[406799904,1772203842463,-493.961025,0.00013324,2]
[406799905,1772203842472,-493.961025,0.00013324,2]
[406799906,1772203842484,-493.961025,0.00013324,2]
[406799907,1772203842493,-493.961025,0.00013324,2]
[406799908,1772203842502,-151.0,0.00013324,2]
[406799909,1772203842512,-151.0,0.00013324,2]
[406799910,1772203842522,-151.0,0.00013324,2]
[406799911,1772203842531,-151.0,0.00013324,2]
[406799912,1772203842540,-151.0,0.00013324,2]
[406799913,1772203842549,-151.0,0.00013324,2]
[406799914,1772203842558,-593177.2760446,0.00013324,2]
[406799915,1772203842567,-3240.0,0.00013425,2]
[406799916,1772203842576,-1013.54,0.00013522,2]
[406799917,1772203842585,-45604.0,0.0001366,2]
[406799918,1772203842594,-500.0,0.00013698,2]
[406799919,1772203842607,-500.0,0.00013698,2]
[406799920,1772203842616,-500.0,0.00013698,2]
[406799921,1772203842625,-500.0,0.00013698,2]
[406799922,1772203842636,-500.0,0.00013698,2]
[406799923,1772203842646,-500.0,0.00013698,2]
[406799924,1772203842655,-500.0,0.00013698,2]
[406799925,1772203842664,-500.0,0.00013698,2]
[406799926,1772203842673,-500.0,0.00013698,2]
[406799927,1772203842682,-500.0,0.00013698,2]
[406799928,1772203842691,-500.0,0.00013698,2]
[406799929,1772203842700,-404.27896317,0.00013698,2]
[406799930,1772203842709,-500.0,0.00013698,2]
[406799931,1772203842718,-500.0,0.00013698,2]
[406799932,1772203842727,-500.0,0.00013698,2]
[406799933,1772203842737,-604.80928583,0.00013698,2]
[406799934,1772203842746,-500.0,0.00013698,2]
[406799935,1772203842755,-500.0,0.00013698,2]
[406799936,1772203842764,-500.0,0.00013698,2]
[406799937,1772203842773,-500.0,0.00013698,2]
[406799938,1772203842782,-500.0,0.00013698,2]
[406799939,1772203842791,-500.0,0.00013698,2]
[406799940,1772203842800,-500.0,0.00013698,2]
[406799941,1772203842809,-500.0,0.00013698,2]
[406799942,1772203842819,-500.0,0.00013698,2]
[406799943,1772203842828,-500.0,0.00013698,2]
[406799944,1772203842836,-500.0,0.00013698,2]
[406799945,1772203842846,-500.0,0.00013698,2]
[406799946,1772203842855,-500.0,0.00013698,2]
[406799947,1772203842864,-500.0,0.00013698,2]
[406799948,1772203842873,-500.0,0.00013698,2]
[406799949,1772203842882,-500.0,0.00013698,2]
[406799950,1772203842891,-500.0,0.00013698,2]
[406799951,1772203842901,-500.0,0.00013698,2]
[406799952,1772203842910,-500.0,0.00013698,2]
[406799954,1772203842919,-500.0,0.00013698,2]
[406799956,1772203842929,-500.0,0.00013698,2]
[406799957,1772203842938,-500.0,0.00013698,2]
[406799958,1772203842947,-500.0,0.00013698,2]
[406799959,1772203842957,-500.0,0.00013698,2]
[406799960,1772203842966,-500.0,0.00013698,2]
[406799961,1772203842975,-500.0,0.00013698,2]
[406799962,1772203842985,-500.0,0.00013698,2]
[406799963,1772203842994,-500.0,0.00013698,2]
[406799964,1772203843004,-500.0,0.00013698,2]
[406799965,1772203843013,-500.0,0.00013698,2]
[406799966,1772203843022,-500.0,0.00013698,2]
[406799967,1772203843031,-500.0,0.00013698,2]
[406799968,1772203843041,-500.0,0.00013698,2]
[406799969,1772203843050,-500.0,0.00013698,2]
[406799970,1772203843060,-500.0,0.00013698,2]
[406799971,1772203843069,-500.0,0.00013698,2]
[406799972,1772203843078,-500.0,0.00013698,2]
[406799973,1772203843087,-500.0,0.00013698,2]
[406799974,1772203843097,-500.0,0.00013698,2]
[406799975,1772203843106,-500.0,0.00013698,2]
[406799976,1772203843115,-500.0,0.00013698,2]
[406799977,1772203843124,-500.0,0.00013698,2]
[406799978,1772203843134,-500.0,0.00013698,2]
[406799980,1772203843143,-500.0,0.00013698,2]
[406799982,1772203843153,-500.0,0.00013698,2]
[406799984,1772203843162,-500.0,0.00013698,2]
[406799985,1772203843171,-500.0,0.00013698,2]
[406799986,1772203843181,-500.0,0.00013698,2]
[406799987,1772203843190,-500.0,0.00013698,2]
[406799988,1772203843199,-500.0,0.00013698,2]
[406799989,1772203843209,-500.0,0.00013698,2]
[406799990,1772203843218,-500.0,0.00013698,2]
[406799991,1772203843227,-500.0,0.00013698,2]
[406799992,1772203843236,-500.0,0.00013698,2]
[406799993,1772203843245,-500.0,0.00013698,2]
[406799994,1772203843255,-500.0,0.00013698,2]
[406799995,1772203843268,-500.0,0.00013698,2]
[406799996,1772203843277,-500.0,0.00013698,2]
[406799997,1772203843286,-500.0,0.00013698,2]
[406799998,1772203843296,-500.0,0.00013698,2]
[406799999,1772203843305,-383.3281671,0.00013698,2]
[406800000,1772203843314,-500.0,0.00013698,2]
[406800001,1772203843323,-500.0,0.00013698,2]
[406800002,1772203843332,-500.0,0.00013698,2]
[406800003,1772203843342,-500.0,0.00013698,2]
[406800004,1772203843351,-500.0,0.00013698,2]
[406800005,1772203843362,-500.0,0.00013698,2]
[406800006,1772203843371,-500.0,0.00013698,2]
[406800007,1772203843381,-476.47320889,0.00013698,2]
[406800008,1772203843390,-500.0,0.00013698,2]
[406800009,1772203843401,-500.0,0.00013698,2]
[406800010,1772203843414,-500.0,0.00013698,2]
[406800011,1772203843424,-500.0,0.00013698,2]
[406800012,1772203843433,-500.0,0.00013698,2]
[406800013,1772203843443,-500.0,0.00013698,2]
[406800014,1772203843452,-500.0,0.00013698,2]
[406800015,1772203843462,-500.0,0.00013698,2]
[406800016,1772203843473,-500.0,0.00013698,2]
[406800017,1772203843482,-500.0,0.00013698,2]
[406800018,1772203843492,-500.0,0.00013698,2]
[406800019,1772203843501,-261.64372905,0.00013698,2]
[406800020,1772203843510,-500.0,0.00013698,2]
[406800021,1772203843520,-500.0,0.00013698,2]
[406800022,1772203843529,-500.0,0.00013698,2]
[406800023,1772203843539,-500.0,0.00013698,2]
[406800024,1772203843548,-459.6206657,0.00013698,2]
[406800025,1772203843558,-500.0,0.00013698,2]
[406800026,1772203843567,-500.0,0.00013698,2]
[406800027,1772203843576,-500.0,0.00013698,2]
[406800028,1772203843585,-500.0,0.00013698,2]
[406800029,1772203843594,-500.0,0.00013698,2]
[406800030,1772203843603,-500.0,0.00013698,2]
[406800032,1772203843612,-500.0,0.00013698,2]
[406800034,1772203843622,-563.9784206,0.00013698,2]
[406800036,1772203843632,-500.0,0.00013698,2]
[406800038,1772203843641,-500.0,0.00013698,2]
[406800040,1772203843650,-500.0,0.00013698,2]
[406800042,1772203843660,-500.0,0.00013698,2]
[406800044,1772203843670,-500.0,0.00013698,2]
[406800045,1772203843679,-500.0,0.00013698,2]
[406800046,1772203843689,-500.0,0.00013698,2]
[406800047,1772203843699,-500.0,0.00013698,2]
[406800048,1772203843709,-500.0,0.00013698,2]
[406800049,1772203843719,-500.0,0.00013698,2]
[406800050,1772203843727,-1343.94,0.00013698,2]
[406800051,1772203843736,-500.0,0.00013698,2]
[406800052,1772203843746,-500.0,0.00013698,2]
[406800053,1772203843755,-500.0,0.00013698,2]
[406800054,1772203843765,-500.0,0.00013698,2]
[406800055,1772203843774,-500.0,0.00013698,2]
[406800056,1772203843783,-500.0,0.00013698,2]
[406800057,1772203843793,-500.0,0.00013698,2]
[406800058,1772203843802,-500.0,0.00013698,2]
[406800059,1772203843811,-500.0,0.00013698,2]
[406800060,1772203843820,-500.0,0.00013698,2]
[406800061,1772203843829,-500.0,0.00013698,2]
[406800062,1772203843838,-500.0,0.00013698,2]
[406800063,1772203843847,-500.0,0.00013698,2]
[406800064,1772203843858,-500.0,0.00013698,2]
[406800065,1772203843867,-500.0,0.00013698,2]
[406800066,1772203843877,-500.0,0.00013698,2]
[406800067,1772203843888,-500.0,0.00013698,2]
[406800068,1772203843897,-500.0,0.00013698,2]
[406800069,1772203843906,-500.0,0.00013698,2]
[406800070,1772203843916,-500.0,0.00013698,2]
[406800071,1772203843925,-500.0,0.00013698,2]
[406800072,1772203843934,-500.0,0.00013698,2]
[406800073,1772203843943,-500.0,0.00013698,2]
[406800074,1772203843952,-500.0,0.00013698,2]
[406800075,1772203843962,-500.0,0.00013698,2]
[406800076,1772203843971,-500.0,0.00013698,2]
[406800077,1772203843980,-500.0,0.00013698,2]
[406800078,1772203843989,-500.0,0.00013698,2]
[406800079,1772203843999,-500.0,0.00013698,2]
[406800080,1772203844008,-500.0,0.00013698,2]
[406800081,1772203844017,-500.0,0.00013698,2]
[406800082,1772203844027,-500.0,0.00013698,2]
[406800083,1772203844036,-500.0,0.00013698,2]
[406800084,1772203844045,-500.0,0.00013698,2]
[406800085,1772203844055,-593.89214064,0.00013698,2]
[406800086,1772203844065,-500.0,0.00013698,2]
[406800087,1772203844074,-500.0,0.00013698,2]
[406800088,1772203844084,-500.0,0.00013698,2]
[406800089,1772203844093,-500.0,0.00013698,2]
[406800090,1772203844102,-479.11436236,0.00013698,2]
[406800091,1772203844111,-500.0,0.00013698,2]
[406800092,1772203844121,-500.0,0.00013698,2]
[406800093,1772203844133,-500.0,0.00013698,2]
[406800094,1772203844142,-500.0,0.00013698,2]
[406800095,1772203844152,-500.0,0.00013698,2]
[406800096,1772203844162,-500.0,0.00013698,2]
[406800097,1772203844171,-500.0,0.00013698,2]
[406800098,1772203844180,-500.0,0.00013698,2]
[406800099,1772203844190,-500.0,0.00013698,2]
[406800100,1772203844319,-500.0,0.00013698,2]
[406800101,1772203844329,-297.82549676,0.00013698,2]
[406800102,1772203844338,-412.8162274,0.00013698,2]
[406800103,1772203844349,-500.0,0.00013698,2]
[406800104,1772203844358,-509.25704796,0.00013698,2]
[406800105,1772203844368,-500.0,0.00013698,2]
[406800106,1772203844377,-500.0,0.00013698,2]
[406800107,1772203844391,-500.0,0.00013698,2]
[406800108,1772203844402,-500.0,0.00013698,2]
[406800109,1772203844413,-500.0,0.00013698,2]
[406800110,1772203844422,-334.85315255,0.00013698,2]
[406800111,1772203844431,-763.09,0.00013699,2]
[406800112,1772203844442,-16301.24,0.00013699,2]
[406800113,1772203844451,-151.0,0.00013699,2]
[406800114,1772203844460,-500.0,0.00013699,2]
[406800115,1772203844471,-460.74468726,0.00013699,2]
[406800116,1772203844480,-18624.32,0.000137,2]
[406800117,1772203844490,-18624.32,0.000137,2]
[406800118,1772203844500,-5531.0,0.000137,5]
[406800119,1772203844509,-600.0,0.00013753,2]
[406800120,1772203844519,-166.81,0.00013753,2]
[406800121,1772203844528,-1013.54,0.00013867,2]
[406800122,1772203844537,-1343.94,0.00013972,2]
[406800123,1772203844547,-214.78,0.00014034,2]
[406800124,1772203844556,-500.0,0.00014082,2]
[406800125,1772203844565,-1013.54,0.00014212,2]
[406800126,1772203844574,-1343.94,0.00014246,2]
[406800127,1772203844583,-763.09,0.00014384,2]
[406800128,1772203844592,-4212.0052927,0.00014424,2]
[406800129,1772203844602,-482.68275809,0.00014451,2]
[406800130,1772203844611,-482.68275809,0.00014451,2]
[406800131,1772203844620,-482.68275809,0.00014451,2]
[406800132,1772203844629,-482.68275809,0.00014451,2]
[406800133,1772203844639,-482.68275809,0.00014451,2]
[406800134,1772203844648,-482.68275809,0.00014451,2]
[406800135,1772203844657,-482.68275809,0.00014451,2]
[406800136,1772203844667,-482.68275809,0.00014451,2]
[406800137,1772203844676,-482.68275809,0.00014451,2]
[406800138,1772203844685,-482.68275809,0.00014451,2]
[406800139,1772203844694,-482.68275809,0.00014451,2]
[406800140,1772203844703,-482.68275809,0.00014451,2]
[406800141,1772203844712,-482.68275809,0.00014451,2]
[406800142,1772203844722,-482.68275809,0.00014451,2]
[406800143,1772203844731,-482.68275809,0.00014451,2]
[406800144,1772203844740,-482.68275809,0.00014451,2]
[406800145,1772203844750,-482.68275809,0.00014451,2]
[406800146,1772203844759,-482.68275809,0.00014451,2]
[406800147,1772203844769,-482.68275805,0.00014451,2]
[406800148,1772203844779,-1343.94,0.0001452,2]
[406800149,1772203844789,-1013.54,0.00014557,2]
[406800150,1772203844798,-2258.0,0.00014559,2]
[406800151,1772203844808,-166.66,0.00014605,2]
[406800152,1772203844818,-500.0,0.00014685,2]
[406800153,1772203844828,-1519.27,0.000147,2]
[406800154,1772203844838,-151.0,0.00014704,2]
[406800155,1772203844847,-151.0,0.00014704,2]
[406800156,1772203844857,-346.311245,0.00014704,2]
[406800157,1772203844867,-346.311245,0.00014704,2]
[406800158,1772203844876,-346.311245,0.00014704,2]
[406800159,1772203844885,-346.311245,0.00014704,2]
[406800160,1772203844894,-493.961025,0.00014704,2]
[406800161,1772203844904,-493.961025,0.00014704,2]
[406800162,1772203844913,-493.961025,0.00014704,2]
[406800163,1772203844923,-493.961025,0.00014704,2]
[406800164,1772203844932,-151.0,0.00014704,2]
[406800165,1772203844941,-151.0,0.00014704,2]
[406800166,1772203844950,-151.0,0.00014704,2]
[406800167,1772203844959,-151.0,0.00014704,2]
[406800168,1772203844969,-151.0,0.00014704,2]
[406800169,1772203844978,-202.440074,0.00014704,2]
[406800170,1772203844988,-144358.21887723,0.00014704,2]
[406800171,1772203845020,-448819.05716737,0.00014704,2]
[406800172,1772203845029,-1343.94,0.00014794,2]
[406800173,1772203845038,-500.0,0.0001487,2]
[406800174,1772203845048,-509.0,0.0001489,2]
[406800175,1772203845057,-166.66,0.00014913,2]
[406800176,1772203845067,-4635.08,0.00014977,2]
[406800177,1772203845076,-250.0,0.00015,2]
[406800178,1772203845085,-1343.94,0.00015068,2]
[406800179,1772203845095,-763.09,0.00015068,2]
[406800180,1772203845104,-330.409036,0.00015068,2]
[406800181,1772203845113,-330.409036,0.00015068,2]
[406800182,1772203845122,-330.409036,0.00015068,2]
[406800183,1772203845131,-330.409036,0.00015068,2]
[406800184,1772203845141,-330.409036,0.00015068,2]
[406800185,1772203845150,-330.409036,0.00015068,2]
[406800186,1772203845160,-330.409036,0.00015068,2]
[406800187,1772203845169,-330.409036,0.00015068,2]
[406800188,1772203845179,-330.409036,0.00015068,2]
[406800189,1772203845190,-330.409036,0.00015068,2]
[406800190,1772203845200,-330.409036,0.00015068,2]
[406800191,1772203845209,-330.409036,0.00015068,2]
[406800192,1772203845219,-214.75633691,0.00015103,2]
[406800193,1772203845228,-14442.47,0.0001512,2]
[406800194,1772203845238,-166.66,0.0001522,2]
[406800195,1772203845247,-1343.94,0.00015342,2]
[406800196,1772203845256,-558.59,0.00015379,2]
[406800197,1772203845266,-174.00015664,0.00015454,2]
[406800198,1772203845275,-160.0,0.00015454,2]
[406800199,1772203845284,-200.0,0.00015457,2]
[406800200,1772203845294,-1860.53,0.00015471,2]
[406800201,1772203845303,-166.66,0.00015528,2]
[406800202,1772203845312,-1343.94,0.00015616,2]
[406800203,1772203845322,-763.09,0.00015753,2]
[406800204,1772203845331,-166.66,0.00015835,2]
[406800205,1772203845340,-1343.94,0.0001589,2]
[406800206,1772203845349,-6343.5306176,0.00015893,2]
[406800207,1772203845358,-4212.0052927,0.00015918,2]
[406800208,1772203845367,-15913.006924,0.00015956,7]
[406800209,1772203845377,-674.381556,0.00015956,7]
[406800210,1772203845386,-3132.380594,0.00015958,7]
[406800211,1772203845395,-5066.6509523,0.0001596,2]
[406800212,1772203845406,-3079.52,0.00016,2]
[406800213,1772203845418,-600.0,0.00016,2]
[406800214,1772203845427,-166.81,0.00016,2]
[406800215,1772203845437,-3162.0,0.00016014,2]
[406800216,1772203845447,-500.0,0.00016082,2]
[406800217,1772203845456,-204283.21796841,0.00016085,2]
[406800218,1772203845468,-15915.57932847,0.00016085,2]
[406800219,1772203845624,-132341.99999996,0.00016085,2]
[406800220,1772203845649,-6531.58904999,0.00016085,2]
[406800221,1772203845682,-4042.45014242,0.00012489,2]
[406800222,1772203845693,-412.59382866,0.00012489,2]
[406800223,1772203845706,-15026.74042324,0.00012489,2]
[406800224,1772203845716,-147819.84888496,0.00016085,2]
[406800225,1772203845856,-86285.04081281,0.00016085,2]
[406800226,1772203845866,-151.0,0.00016085,2]
[406800227,1772203845875,-151.0,0.00016085,2]
[406800228,1772203845885,-346.311245,0.00016085,2]
[406800230,1772203846033,-346.311245,0.00016085,2]
[406800231,1772203846043,-346.311245,0.00016085,2]
[406800232,1772203846053,-346.311245,0.00016085,2]
[406800233,1772203846063,-493.961025,0.00016085,2]
[406800234,1772203846072,-493.961025,0.00016085,2]
[406800235,1772203846082,-493.961025,0.00016085,2]
[406800236,1772203846091,-493.961025,0.00016085,2]
[406800237,1772203846101,-151.0,0.00016085,2]
[406800238,1772203846110,-330.409036,0.00016085,2]
[406800239,1772203846119,-330.409036,0.00016085,2]
[406800240,1772203846128,-330.409036,0.00016085,2]
[406800241,1772203846140,-330.409036,0.00016085,2]
[406800242,1772203846152,-151.0,0.00016085,2]
[406800243,1772203846161,-278.240704,0.00016085,2]
[406800244,1772203846171,-151.0,0.00016085,2]
[406800245,1772203846181,-166.66,0.00016143,2]
[406800246,1772203846195,-1343.94,0.00016164,2]
[406800247,1772203846205,-214.78,0.00016167,2]
[406800248,1772203846215,-1521.68,0.00016217,2]
[406800249,1772203846225,-180.5,0.00016438,2]
[406800250,1772203846235,-1343.94,0.00016438,2]
[406800251,1772203846245,-763.09,0.00016438,2]
[406800252,1772203846254,-151.0,0.00016438,2]
[406800253,1772203846263,-151.0,0.00016438,2]
[406800254,1772203846273,-151.0,0.00016438,2]
[406800255,1772203846282,-151.0,0.00016438,2]
[406800256,1772203846291,-151.0,0.00016438,2]
[406800257,1772203846301,-151.0,0.00016438,2]
[406800258,1772203846310,-151.0,0.00016438,2]
[406800259,1772203846319,-500.0,0.00016493,2]
[406800260,1772203846329,-1519.27,0.00016538,2]
[406800261,1772203846339,-1415.4330026,0.00016554,2]
[406800262,1772203846349,-45000.0,0.000166,23]